bitfinex-derivatives/quotes_BTCF0:USTF0_20240824
["timestamp","ask_amount","ask_price","bid_price","bid_amount"]
[1724479450830,0.39110483,64011.0,64010.0,0.002]
[1724479453738,0.39110297,64011.0,64010.0,0.002]
[1724479456134,0.41640594,64011.0,64010.0,0.002]
[1724479456439,0.39110297,64011.0,64010.0,0.002]
[1724479456938,0.48468502,64011.0,64010.0,0.002]
[1724479457137,0.39110297,64011.0,64010.0,0.002]
[1724479468244,0.48468502,64011.0,64010.0,0.002]
[1724479470542,0.48468451,64011.0,64010.0,0.002]
[1724479470743,0.39110246,64011.0,64010.0,0.002]
[1724479471047,0.48468451,64011.0,64010.0,0.002]
[1724479471238,0.39110246,64011.0,64010.0,0.002]
[1724479472047,0.46915846,64011.0,64010.0,0.002]
[1724479472642,0.54470049,64011.0,64010.0,0.002]
[1724479475245,0.443856,64011.0,64010.0,0.002]
[1724479475436,0.46916071,64011.0,64010.0,0.002]
[1724479478054,0.10836071,64011.0,64010.0,0.002]
[1724479478239,0.46916071,64011.0,64010.0,0.002]
[1724479478442,0.54466677,64011.0,64010.0,0.002]
[1724479479152,0.54468359,64011.0,64010.0,0.002]
[1724479479344,0.46916071,64011.0,64010.0,0.002]
[1724479480453,0.54468011,64011.0,64010.0,0.002]
[1724479482342,0.46916071,64011.0,64010.0,0.002]
[1724479485170,0.46916073,64011.0,64010.0,0.002]
[1724479486049,0.078057,64010.0,64001.0,0.04675856]
[1724479486249,0.3608,64002.0,64001.0,0.078068]
[1724479486552,0.38610577,64002.0,64001.0,0.078068]
[1724479486758,0.38614577,64002.0,64001.0,0.078068]
[1724479487149,0.38614577,64002.0,64001.0,0.08602987]
[1724479487958,0.38714577,64002.0,64001.0,0.08602987]
[1724479489251,0.39214577,64002.0,64001.0,0.08702987]
[1724479489751,0.36684,64002.0,64001.0,0.08702987]
[1724479489958,0.39214618,64002.0,64001.0,0.08702987]
[1724479491760,0.078071,63999.0,63994.0,0.00088]
[1724479491959,0.10337718,63999.0,63990.0,0.04675856]
[1724479492154,0.10337718,63999.0,63993.0,0.078078]
[1724479492155,0.19694101,63999.0,63993.0,0.078078]
[1724479492354,0.10337718,63999.0,63993.0,0.078078]
[1724479492654,0.19698101,63999.0,63993.0,0.078078]
[1724479492964,0.19698101,63999.0,63995.0,0.00705452]
[1724479493155,0.10341718,63999.0,63995.0,0.00705452]
[1724479493352,0.10841718,63999.0,63998.0,0.00123435]
[1724479493563,0.11041718,63999.0,63998.0,0.00223435]
[1724479494658,0.1104197,63999.0,63998.0,0.00223435]
[1724479499364,0.11041938,63999.0,63998.0,0.00223435]
[1724479502467,0.03234838,63999.0,63998.0,0.00223435]
[1724479502872,0.03234835,63999.0,63998.0,0.00223435]
[1724479503175,0.00704,63999.0,63998.0,0.08030635]
[1724479505158,0.03234808,63999.0,63998.0,0.08030635]
[1724479508568,0.03234811,63999.0,63998.0,0.08030635]
[1724479511072,0.36164,64002.0,64001.0,0.078068]
[1724479511272,0.3608,64002.0,64001.0,0.078068]
[1724479511481,0.42315527,64002.0,64001.0,0.078068]
[1724479511676,0.42315527,64002.0,64001.0,0.12481333]
[1724479511977,0.06235527,64002.0,64001.0,0.12481333]
[1724479512172,0.06235527,64004.0,64003.0,0.078066]
[1724479513578,0.07035527,64004.0,64003.0,0.080066]
[1724479514278,0.008,64004.0,64003.0,0.080066]
[1724479514676,0.008,64004.0,64003.0,0.12680138]
[1724479515278,0.008,64004.0,64003.0,0.080066]
[1724479515474,0.008,64004.0,64003.0,0.12680138]
[1724479516175,0.008,64004.0,64003.0,0.080066]
[1724479520884,0.008,64004.0,64003.0,0.08699003]
[1724479528294,0.008,64004.0,64003.0,0.77571003]
[1724479532189,0.008,64004.0,64003.0,0.30699003]
[1724479532384,0.008,64004.0,64003.0,0.77571003]
[1724479533599,0.008,64004.0,64003.0,0.30699003]
[1724479533895,0.008,64004.0,64003.0,0.35372541]
[1724479534291,0.008,64004.0,64003.0,0.82244541]
[1724479534493,0.008,64004.0,64003.0,0.35372541]
[1724479535093,0.008,64004.0,64003.0,0.30699003]
[1724479536093,0.008,64004.0,64003.0,0.35367015]
[1724479536300,0.008,64004.0,64003.0,0.30699003]
[1724479538795,0.008,64004.0,64003.0,0.36930545]
[1724479539295,0.05472123,64004.0,64003.0,0.36928648]
[1724479539595,0.05472123,64004.0,64003.0,0.30699003]
[1724479539804,0.008,64004.0,64003.0,0.3692867]
[1724479539994,0.008,64004.0,64003.0,0.36928713]
[1724479540195,0.008,64004.0,64003.0,0.30699003]
[1724479545109,0.008,64004.0,64003.0,0.38505603]
[1724479547905,0.008,64004.0,64003.0,0.74585603]
[1724479548502,0.05479364,64004.0,64003.0,0.74585603]
[1724479549010,0.008,64004.0,64003.0,0.74585603]
[1724479551909,0.008,64004.0,64003.0,0.38505603]
[1724479552110,0.008,64004.0,64003.0,0.74585603]
[1724479552710,0.008,64004.0,64003.0,0.38505603]
[1724479552905,0.008,64004.0,64003.0,0.74585603]
[1724479555613,0.008,64004.0,64003.0,0.38505603]
[1724479556004,0.008,64004.0,64003.0,0.74585603]
[1724479557918,0.008,64004.0,64003.0,0.38505603]
[1724479558116,0.008,64004.0,64003.0,0.74585603]
[1724479558410,0.008,64004.0,64003.0,0.82365986]
[1724479558607,0.008,64004.0,64003.0,0.81771307]
[1724479560715,0.008,64004.0,64003.0,0.81761419]
[1724479563017,0.008,64004.0,64003.0,0.73954819]
[1724479563322,0.008,64004.0,64003.0,0.89557926]
[1724479564107,0.008,64004.0,64003.0,0.53477926]
[1724479564310,0.008,64004.0,64003.0,0.81751326]
[1724479564613,0.07035527,64004.0,64003.0,0.44779003]
[1724479564807,0.008,64004.0,64003.0,0.51017924]
[1724479565010,0.13235205,64004.0,64003.0,0.44779003]
[1724479565210,0.0544,64004.0,64003.0,0.44779003]
[1724479565412,0.0544,64004.0,64003.0,0.08699003]
[1724479566709,0.13235205,64004.0,64003.0,0.08699003]
[1724479566908,0.13235205,64004.0,64003.0,0.13377035]
[1724479567108,0.07970519,64004.0,64003.0,0.08699003]
[1724479567315,0.07970502,64004.0,64003.0,0.08699003]
[1724479567515,0.0544,64004.0,64003.0,0.08699003]
[1724479568203,0.07970527,64004.0,64003.0,0.08699003]
[1724479568407,0.0544,64004.0,64003.0,0.08699003]
[1724479568616,0.13238072,64004.0,64003.0,0.08699003]
[1724479569820,0.0544,64004.0,64003.0,0.08699003]
[1724479572421,0.078071,63999.0,63998.0,0.00023435]
[1724479572607,0.4641763,63999.0,63998.0,0.00023435]
[1724479572813,0.55771197,63999.0,63998.0,0.00023435]
[1724479573008,1.3818363,63999.0,63998.0,0.00023435]
[1724479573213,1.3818763,63999.0,63998.0,0.00023435]
[1724479573522,1.38188017,63999.0,63998.0,0.00023435]
[1724479573716,1.38288017,63999.0,63998.0,0.00123435]
[1724479573921,1.38488017,63999.0,63998.0,0.00223435]
[1724479574720,0.98488017,63999.0,63998.0,0.00223435]
[1724479575238,0.959571,63999.0,63998.0,0.00223435]
[1724479575521,0.959571,63999.0,63988.0,0.30049706]
[1724479575522,1.30680946,63999.0,63988.0,0.30049706]
[1724479575818,0.3608,63990.0,63988.0,0.30049706]
[1724479576127,0.0955,63989.0,63988.0,0.30049706]
[1724479576317,0.09554,63989.0,63988.0,0.30049706]
[1724479576718,0.09554,63989.0,63988.0,0.3073102]
[1724479577316,0.14223448,63989.0,63988.0,0.3073102]
[1724479577713,0.14523448,63989.0,63988.0,0.3073102]
[1724479578317,0.09854,63989.0,63988.0,0.3073102]
[1724479578717,0.10154,63989.0,63988.0,0.3073102]
[1724479580224,0.10154,63989.0,63988.0,0.3853942]
[1724479587219,0.179623,63989.0,63988.0,0.3073102]
[1724479587422,0.078088,63985.0,63982.0,0.00023435]
[1724479587725,0.3608,63983.0,63982.0,0.00023435]
[1724479588327,0.3608,63983.0,63982.0,0.00710426]
[1724479588527,0.36084,63983.0,63982.0,0.00323435]
[1724479590029,0.51702,63983.0,63982.0,0.00323435]
[1724479590248,1.6059,63983.0,63982.0,0.00723435]
[1724479590933,0.36084,63983.0,63982.0,0.00723435]
[1724479591136,0.42298925,63983.0,63982.0,0.00723435]
[1724479591432,0.36084,63983.0,63982.0,0.00723435]
[1724479594423,0.43893,63983.0,63982.0,0.00723435]
[1724479597836,0.50110879,63983.0,63982.0,0.00723435]
[1724479598034,0.43893,63983.0,63982.0,0.00723435]
[1724479598427,0.36084,63983.0,63982.0,0.00723435]
[1724479598631,0.4230283,63983.0,63982.0,0.00723435]
[1724479598826,0.36084,63983.0,63982.0,0.00723435]
[1724479600141,0.36084,63983.0,63982.0,0.08532535]
[1724479600341,0.4230283,63983.0,63982.0,0.08532535]
[1724479600932,0.36084,63983.0,63982.0,0.08532535]
[1724479601236,0.4230283,63983.0,63982.0,0.08532535]
[1724479602334,0.36084,63983.0,63982.0,0.08532535]
[1724479602534,0.06229647,63983.0,63982.0,0.08532535]
[1724479602734,4e-05,63983.0,63982.0,0.08532535]
[1724479603636,0.04673725,63983.0,63982.0,0.08532535]
[1724479603835,4e-05,63983.0,63982.0,0.08532535]
[1724479604039,4e-05,63983.0,63982.0,0.13210567]
[1724479604539,4e-05,63983.0,63982.0,0.08532535]
[1724479606537,4e-05,63983.0,63982.0,0.13205558]
[1724479606846,4e-05,63983.0,63982.0,0.08532535]
[1724479607042,4e-05,63983.0,63982.0,0.13205575]
[1724479607542,0.04673725,63983.0,63982.0,0.08532535]
[1724479608047,4e-05,63983.0,63982.0,0.08532535]
[1724479613340,0.06229647,63983.0,63982.0,0.08532535]
[1724479614848,4e-05,63983.0,63982.0,0.08532535]
[1724479615256,0.06229647,63983.0,63982.0,0.08532535]
[1724479617752,4e-05,63983.0,63982.0,0.08532535]
[1724479622855,0.04794,63983.0,63982.0,0.08532535]
[1724479627565,0.04794,63983.0,63982.0,0.13205575]
[1724479627865,0.04794,63983.0,63982.0,0.08532535]
[1724479628064,0.04794,63983.0,63982.0,0.13213322]
[1724479628261,4e-05,63983.0,63982.0,0.08532535]
[1724479628463,4e-05,63983.0,63982.0,0.13213322]
[1724479628859,4e-05,63983.0,63982.0,0.08532535]
[1724479633970,4e-05,63983.0,63982.0,0.13214474]
[1724479635167,0.07796586,63983.0,63982.0,0.13214474]
[1724479635580,4e-05,63983.0,63982.0,0.14464474]
[1724479636382,0.07796586,63983.0,63982.0,0.09782535]
[1724479636679,4e-05,63983.0,63982.0,0.09782535]
[1724479636981,4e-05,63983.0,63982.0,0.14465893]
[1724479638581,0.07801066,63983.0,63982.0,0.09782535]
[1724479639484,4e-05,63983.0,63982.0,0.09782535]
[1724479639676,0.07801083,63983.0,63982.0,0.09782535]
[1724479640987,0.02535218,63983.0,63982.0,0.14467003]
[1724479641285,4e-05,63983.0,63982.0,0.14467003]
[1724479641483,4e-05,63983.0,63982.0,0.09782535]
[1724479641677,4e-05,63983.0,63982.0,0.14467058]
[1724479641983,0.0780127,63983.0,63982.0,0.09782535]
[1724479642195,4e-05,63983.0,63982.0,0.09782535]
[1724479642488,0.07801349,63983.0,63982.0,0.09782535]
[1724479642883,0.07801388,63983.0,63982.0,0.09782535]
[1724479643187,4e-05,63983.0,63982.0,0.09782535]
[1724479643389,4e-05,63983.0,63982.0,0.16025121]
[1724479646194,4e-05,63983.0,63982.0,0.09782535]
[1724479650789,4e-05,63983.0,63982.0,0.16025869]
[1724479652787,0.06236533,63983.0,63982.0,0.16025869]
[1724479658295,4e-05,63983.0,63982.0,0.16025869]
[1724479660386,4e-05,63983.0,63982.0,0.09782535]
[1724479667503,4e-05,63983.0,63982.0,0.16027237]
[1724479668796,4e-05,63983.0,63982.0,0.09782535]
[1724479668992,4e-05,63983.0,63982.0,0.16027745]
[1724479669415,4e-05,63983.0,63982.0,0.09782535]
[1724479669707,0.07801388,63983.0,63982.0,0.09782535]
[1724479670096,4e-05,63983.0,63982.0,0.09782535]
[1724479670495,4e-05,63983.0,63982.0,0.18782535]
[1724479670696,0.02535324,63983.0,63982.0,0.14466713]
[1724479670900,0.09004,63983.0,63982.0,0.09782535]
[1724479671094,0.20886431,63983.0,63982.0,0.09782535]
[1724479671299,0.20886509,63983.0,63982.0,0.09782535]
[1724479671506,0.20889583,63983.0,63982.0,0.09782535]
[1724479671801,0.11535406,63983.0,63982.0,0.09782535]
[1724479673094,0.20889583,63983.0,63982.0,0.09782535]
[1724479673497,0.11535406,63983.0,63982.0,0.09782535]
[1724479674907,0.47615406,63983.0,63982.0,0.09782535]
[1724479675103,0.55424406,63983.0,63982.0,0.01973435]
[1724479675301,1.02312406,63983.0,63982.0,0.01973435]
[1724479675711,1.0310159,63983.0,63982.0,0.01973435]
[1724479677598,0.9410159,63983.0,63982.0,0.01973435]
[1724479677803,1.0310159,63983.0,63982.0,0.01973435]
[1724479681505,0.5621359,63983.0,63982.0,0.01973435]
[1724479682301,0.56213639,63983.0,63982.0,0.01973435]
[1724479682499,0.20133639,63983.0,63982.0,0.01973435]
[1724479682706,0.56213639,63983.0,63982.0,0.01973435]
[1724479684207,0.47213639,63983.0,63982.0,0.01973435]
[1724479685712,0.11133639,63983.0,63982.0,0.01973435]
[1724479685920,0.46424455,63983.0,63982.0,0.01973435]
[1724479688210,0.46424455,63983.0,63982.0,0.09782535]
[1724479688415,0.38615455,63983.0,63982.0,0.09782535]
[1724479688607,0.43868259,63983.0,63982.0,0.09782535]
[1724479690220,0.36084,63983.0,63982.0,0.09782535]
[1724479691520,4e-05,63983.0,63982.0,0.09782535]
[1724479691818,0.36084,63983.0,63982.0,0.09782535]
[1724479692411,0.38615428,63983.0,63982.0,0.09782535]
[1724479693707,0.02535428,63983.0,63982.0,0.09782535]
[1724479693913,0.38615428,63983.0,63982.0,0.09782535]
[1724479694112,0.36084,63983.0,63982.0,0.09782535]
[1724479694314,4e-05,63983.0,63982.0,0.09782535]
[1724479694618,0.38615428,63983.0,63982.0,0.09782535]
[1724479696211,0.02535428,63983.0,63982.0,0.09782535]
[1724479696714,0.38615428,63983.0,63982.0,0.09782535]
[1724479697815,0.36084,63983.0,63982.0,0.09782535]
[1724479698620,4e-05,63983.0,63982.0,0.09782535]
[1724479698821,0.36084,63983.0,63982.0,0.09782535]
[1724479699015,4e-05,63983.0,63982.0,0.09782535]
[1724479699216,0.36084,63983.0,63982.0,0.09782535]
[1724479706538,0.47973281,63983.0,63982.0,0.09782535]
[1724479708624,0.11893281,63983.0,63982.0,0.09782535]
[1724479708823,0.09361852,63983.0,63982.0,0.09782535]
[1724479709025,0.45441852,63983.0,63982.0,0.09782535]
[1724479709225,0.47973281,63983.0,63982.0,0.09782535]
[1724479709830,0.11893268,63983.0,63982.0,0.09782535]
[1724479710026,0.09361852,63983.0,63982.0,0.09782535]
[1724479710225,0.45441852,63983.0,63982.0,0.09782535]
[1724479710427,0.47973268,63983.0,63982.0,0.09782535]
[1724479711141,0.38615416,63983.0,63982.0,0.09782535]
[1724479711621,0.47973268,63983.0,63982.0,0.09782535]
[1724479712028,0.47973281,63983.0,63982.0,0.09782535]
[1724479713229,0.11893281,63983.0,63982.0,0.09782535]
[1724479713428,0.45441852,63983.0,63982.0,0.09782535]
[1724479713626,0.47973281,63983.0,63982.0,0.09782535]
[1724479714332,0.11893281,63983.0,63982.0,0.09782535]
[1724479714530,0.45441852,63983.0,63982.0,0.09782535]
[1724479714734,0.11893281,63983.0,63982.0,0.09782535]
[1724479714929,0.09361852,63983.0,63982.0,0.09782535]
[1724479715131,0.45441852,63983.0,63982.0,0.09782535]
[1724479715324,0.47973281,63983.0,63982.0,0.09782535]
[1724479718139,0.11893281,63983.0,63982.0,0.09782535]
[1724479718336,0.38615429,63983.0,63982.0,0.09782535]
[1724479720331,0.36084,63983.0,63982.0,0.09782535]
[1724479720536,0.38615415,63983.0,63982.0,0.09782535]
[1724479723431,0.47982042,63983.0,63982.0,0.09782535]
[1724479726639,0.11902042,63983.0,63982.0,0.09782535]
[1724479726840,0.47982042,63983.0,63982.0,0.09782535]
[1724479727039,0.11902042,63983.0,63982.0,0.09782535]
[1724479727243,0.47982042,63983.0,63982.0,0.09782535]
[1724479727645,0.47615415,63983.0,63982.0,0.01973435]
[1724479727840,0.078095,63980.0,63977.0,0.078096]
[1724479728046,0.09,63978.0,63977.0,0.078096]
[1724479728237,0.11531415,63978.0,63972.0,0.0551624]
[1724479728441,0.3608,63973.0,63972.0,0.1332664]
[1724479728637,0.38611415,63973.0,63972.0,0.1332664]
[1724479729037,0.38615415,63973.0,63972.0,0.08642454]
[1724479729247,0.43880171,63973.0,63972.0,0.17642454]
[1724479729444,0.43880171,63973.0,63972.0,0.2232664]
[1724479729646,0.43880171,63973.0,63972.0,0.22325764]
[1724479729850,0.36084,63973.0,63972.0,0.22325764]
[1724479730145,0.34384,63973.0,63972.0,0.17642454]
[1724479730446,0.34384,63973.0,63972.0,0.22324998]
[1724479730752,0.34484,63973.0,63972.0,0.23024998]
[1724479730955,0.34484,63973.0,63972.0,0.23624998]
[1724479732149,0.00104,63973.0,63972.0,0.23624998]
[1724479732547,0.00104,63973.0,63972.0,0.18942454]
[1724479735554,0.00104,63973.0,63972.0,0.09942454]
[1724479735748,0.00104,63973.0,63972.0,0.18942454]
[1724479736647,0.09104,63973.0,63972.0,0.01348]
[1724479736954,0.19445954,63973.0,63972.0,0.01348]
[1724479737145,0.26201356,63973.0,63972.0,0.01348]
[1724479738365,0.19445954,63973.0,63972.0,0.01348]
[1724479738751,0.20256701,63973.0,63972.0,0.01348]
[1724479739154,0.29595607,63973.0,63972.0,0.01348]
[1724479739357,0.20256701,63973.0,63972.0,0.01348]
[1724479739561,0.20156701,63973.0,63972.0,0.00648]
[1724479739861,0.20556701,63973.0,63972.0,0.00648]
[1724479740355,0.20556701,63973.0,63972.0,0.00048]
[1724479740560,0.20956701,63973.0,63972.0,0.00048]
[1724479740955,0.20956971,63973.0,63972.0,0.00048]
[1724479741865,0.93116971,63973.0,63972.0,0.00048]
[1724479743552,0.20956971,63973.0,63972.0,0.00048]
[1724479743752,0.93116971,63973.0,63972.0,0.00048]
[1724479744371,0.20956971,63973.0,63972.0,0.00048]
[1724479744663,0.93116971,63973.0,63972.0,0.00048]
[1724479745758,1.40012971,63973.0,63972.0,0.00048]
[1724479748559,0.93116971,63973.0,63972.0,0.00048]
[1724479748972,0.20956971,63973.0,63972.0,0.00048]
[1724479749168,0.93116971,63973.0,63972.0,0.00048]
[1724479749360,0.20957001,63973.0,63972.0,0.00048]
[1724479749561,0.93117001,63973.0,63972.0,0.00048]
[1724479752859,0.90584947,63973.0,63972.0,0.00048]
[1724479753259,0.98366593,63973.0,63972.0,0.00048]
[1724479753566,0.90584947,63973.0,63972.0,0.00048]
[1724479753768,0.54504947,63973.0,63972.0,0.00048]
[1724479755473,0.62286593,63973.0,63972.0,0.00048]
[1724479756267,0.54504947,63973.0,63972.0,0.00048]
[1724479756668,0.62289988,63973.0,63972.0,0.00048]
[1724479756973,0.54504947,63973.0,63972.0,0.00048]
[1724479757364,0.57036768,63973.0,63972.0,0.00048]
[1724479759077,0.57036811,63973.0,63972.0,0.00048]
[1724479759272,0.57036811,63973.0,63972.0,0.00352]
[1724479761677,0.57036902,63973.0,63972.0,0.00352]
[1724479762380,0.20956902,63973.0,63972.0,0.00352]
[1724479762584,0.57036902,63973.0,63972.0,0.00352]
[1724479763873,0.66375808,63973.0,63972.0,0.00352]
[1724479764074,0.30295808,63973.0,63972.0,0.00352]
[1724479764276,0.66375808,63973.0,63972.0,0.00352]
[1724479765182,0.57036902,63973.0,63972.0,0.00352]
[1724479766880,0.63826828,63973.0,63972.0,0.00352]
[1724479767677,0.63827139,63973.0,63972.0,0.00352]
[1724479768178,0.57036922,63973.0,63972.0,0.00352]
[1724479768984,0.5703692,63973.0,63972.0,0.00352]
[1724479773689,0.54504947,63973.0,63972.0,0.00352]
[1724479773879,0.57036917,63973.0,63972.0,0.00352]
[1724479774785,0.20956917,63973.0,63972.0,0.00352]
[1724479774981,0.57036917,63973.0,63972.0,0.00352]
[1724479775993,0.20956917,63973.0,63972.0,0.00352]
[1724479776191,0.57036917,63973.0,63972.0,0.00352]
[1724479776687,0.2774748,63973.0,63972.0,0.00352]
[1724479776887,0.6382748,63973.0,63972.0,0.00352]
[1724479778790,0.27746525,63973.0,63972.0,0.00352]
[1724479779196,0.63826525,63973.0,63972.0,0.00352]
[1724479779695,0.63827612,63973.0,63972.0,0.00352]
[1724479779895,0.27747612,63973.0,63972.0,0.00352]
[1724479780092,0.63827612,63973.0,63972.0,0.00352]
[1724479781993,0.57036917,63973.0,63972.0,0.00352]
[1724479785203,0.20956917,63973.0,63972.0,0.00352]
[1724479785407,0.57036917,63973.0,63972.0,0.00352]
[1724479786603,0.20956917,63973.0,63972.0,0.00352]
[1724479786994,0.57036917,63973.0,63972.0,0.00352]
[1724479787597,0.20956917,63973.0,63972.0,0.00352]
[1724479787995,0.57036917,63973.0,63972.0,0.00352]
[1724479788196,0.20956917,63973.0,63972.0,0.00352]
[1724479788406,0.57036917,63973.0,63972.0,0.00352]
[1724479788597,0.57036892,63973.0,63972.0,0.00352]
[1724479789403,0.20956892,63973.0,63972.0,0.00352]
[1724479789598,0.57036892,63973.0,63972.0,0.00352]
[1724479789995,0.078107,63969.0,63968.0,0.04682544]
[1724479790204,0.11531945,63969.0,63966.0,0.00023435]
[1724479790504,0.7216,63967.0,63966.0,0.00023435]
[1724479790699,0.74691945,63967.0,63966.0,0.00023435]
[1724479791303,0.74691945,63967.0,63966.0,0.00323435]
[1724479791501,0.74591945,63967.0,63966.0,0.00323435]
[1724479791906,0.82402945,63967.0,63966.0,0.00323435]
[1724479792307,0.82403227,63967.0,63966.0,0.00323435]
[1724479793105,0.82403227,63967.0,63966.0,0.00623435]
[1724479793512,0.82403224,63967.0,63966.0,0.00623435]
[1724479794908,0.82403221,63967.0,63966.0,0.00623435]
[1724479796205,0.91761054,63967.0,63966.0,0.00623435]
[1724479797404,0.91861054,63967.0,63966.0,0.00623435]
[1724479798300,0.91865054,63967.0,63966.0,0.00623435]
[1724479798806,0.19705054,63967.0,63966.0,0.00623435]
[1724479799012,0.91865054,63967.0,63966.0,0.00623435]
[1724479799308,0.82507221,63967.0,63966.0,0.00623435]
[1724479802213,0.38616221,63967.0,63966.0,0.00623435]
[1724479802610,0.43881093,63967.0,63966.0,0.00623435]
[1724479802802,0.36084,63967.0,63966.0,0.00623435]
[1724479803212,0.36084,63967.0,63966.0,0.08434535]
[1724479804305,4e-05,63967.0,63966.0,0.08434535]
[1724479811421,4e-05,63967.0,63966.0,0.08665116]
[1724479823930,0.07801093,63967.0,63966.0,0.08665116]
[1724479828126,4e-05,63967.0,63966.0,0.08665116]
[1724479831658,4e-05,63967.0,63966.0,0.1334766]
[1724479832546,4e-05,63967.0,63966.0,0.08665116]
[1724479832949,0.02535905,63967.0,63966.0,0.08665116]
[1724479833147,4e-05,63967.0,63966.0,0.08665116]
[1724479836645,0.02535905,63967.0,63966.0,0.08665116]
[1724479836845,4e-05,63967.0,63966.0,0.08665116]
[1724479838554,4e-05,63967.0,63966.0,0.1335302]
[1724479838953,0.09360645,63967.0,63966.0,0.08665116]
[1724479839254,4e-05,63967.0,63966.0,0.1335302]
[1724479839957,4e-05,63967.0,63966.0,0.08665116]
[1724479840155,4e-05,63967.0,63966.0,0.1335302]
[1724479840660,0.36084,63967.0,63966.0,0.1335302]
[1724479840854,0.38615898,63967.0,63966.0,0.08665116]
[1724479841858,0.47972543,63967.0,63966.0,0.08665116]
[1724479842248,0.56972543,63967.0,63966.0,0.08665116]
[1724479845350,0.20892543,63967.0,63966.0,0.08665116]
[1724479845550,0.56972543,63967.0,63966.0,0.00854016]
[1724479846055,0.64783543,63967.0,63966.0,0.00854016]
[1724479847962,0.55426898,63967.0,63966.0,0.00854016]
[1724479849561,0.64782975,63967.0,63966.0,0.00854016]
[1724479850658,0.55426898,63967.0,63966.0,0.00854016]
[1724479851355,0.19346898,63967.0,63966.0,0.00854016]
[1724479851555,0.554272,63967.0,63966.0,0.00854016]
[1724479851960,0.193472,63967.0,63966.0,0.00854016]
[1724479852165,0.554272,63967.0,63966.0,0.00854016]
[1724479852555,0.55780031,63967.0,63966.0,0.00854016]
[1724479852763,0.64780031,63967.0,63966.0,0.00854016]
[1724479856364,0.55427165,63967.0,63966.0,0.00854016]
[1724479858761,0.19347165,63967.0,63966.0,0.00854016]
[1724479858964,0.55427165,63967.0,63966.0,0.00854016]
[1724479859770,0.61921388,63967.0,63966.0,0.00854016]
[1724479860457,0.61921388,63967.0,63966.0,0.00554016]
[1724479860657,0.62310067,63967.0,63966.0,0.00554016]
[1724479861663,0.55827453,63967.0,63966.0,0.00554016]
[1724479861868,0.53308568,63967.0,63966.0,0.00554016]
[1724479862072,0.62308568,63967.0,63966.0,0.00254016]
[1724479862266,0.62708568,63967.0,63966.0,0.00254016]
[1724479862571,0.56227453,63967.0,63966.0,0.00254016]
[1724479863873,0.83307453,63967.0,63966.0,0.00254016]
[1724479864073,0.92307453,63967.0,63966.0,0.00254016]
[1724479864578,0.92307396,63967.0,63966.0,0.00254016]
[1724479865277,0.83307396,63967.0,63966.0,0.00254016]
[1724479865568,0.92307396,63967.0,63966.0,0.00254016]
[1724479866364,1.01652141,63967.0,63966.0,0.00254016]
[1724479866566,0.92307396,63967.0,63966.0,0.00254016]
[1724479866765,0.83307396,63967.0,63966.0,0.00254016]
[1724479867169,0.92307396,63967.0,63966.0,0.00254016]
[1724479870571,1.01652141,63967.0,63966.0,0.00254016]
[1724479871568,0.29492141,63967.0,63966.0,0.00254016]
[1724479871768,0.65572141,63967.0,63966.0,0.00254016]
[1724479873271,0.56572141,63967.0,63966.0,0.00254016]
[1724479873469,0.65572141,63967.0,63966.0,0.00254016]
[1724479873671,0.56227396,63967.0,63966.0,0.00254016]
[1724479874170,0.63039745,63967.0,63966.0,0.00254016]
[1724479874370,0.6557194,63967.0,63966.0,0.00254016]
[1724479874571,0.56227195,63967.0,63966.0,0.00254016]
[1724479876376,0.65579052,63967.0,63966.0,0.00254016]
[1724479876672,0.56227195,63967.0,63966.0,0.00254016]
[1724479879086,0.26683993,63967.0,63966.0,0.00254016]
[1724479879383,0.62763993,63967.0,63966.0,0.00254016]
[1724479879780,0.26683993,63967.0,63966.0,0.00254016]
[1724479880082,0.62763993,63967.0,63966.0,0.00254016]
[1724479880272,0.26683993,63967.0,63966.0,0.00254016]
[1724479880475,0.62763993,63967.0,63966.0,0.00254016]
[1724479880684,0.39416195,63967.0,63966.0,0.00254016]
[1724479880883,0.57769758,63967.0,63966.0,0.08065116]
[1724479881091,0.48416195,63967.0,63966.0,0.08065116]
[1724479882393,0.48416195,63967.0,63966.0,0.00254016]
[1724479885397,0.45884,63967.0,63966.0,0.00254016]
[1724479885895,0.48415973,63967.0,63966.0,0.00254016]
[1724479886097,0.45884,63967.0,63966.0,0.00254016]
[1724479886292,0.53678485,63967.0,63966.0,0.00254016]
[1724479887097,0.45884,63967.0,63966.0,0.00254016]
[1724479887596,0.48416018,63967.0,63966.0,0.00254016]
[1724479889108,0.48416116,63967.0,63966.0,0.00254016]
[1724479890306,0.12336116,63967.0,63966.0,0.00254016]
[1724479890602,0.48416116,63967.0,63966.0,0.00254016]
[1724479891900,0.57769679,63967.0,63966.0,0.00254016]
[1724479892406,0.48416116,63967.0,63966.0,0.00254016]
[1724479892603,0.57769679,63967.0,63966.0,0.00254016]
[1724479893002,0.21689679,63967.0,63966.0,0.00254016]
[1724479893403,0.57769679,63967.0,63966.0,0.00254016]
[1724479893802,0.21689679,63967.0,63966.0,0.00254016]
[1724479894005,0.57769679,63967.0,63966.0,0.00254016]
[1724479894406,0.21689679,63967.0,63966.0,0.00254016]
[1724479894707,0.48416116,63967.0,63966.0,0.00254016]
[1724479895106,0.57774145,63967.0,63966.0,0.00254016]
[1724479895504,0.39416116,63967.0,63966.0,0.00254016]
[1724479895709,0.39416116,63967.0,63966.0,0.17065116]
[1724479896807,0.36884,63967.0,63966.0,0.17065116]
[1724479897511,0.44681545,63967.0,63966.0,0.17065116]
[1724479898508,0.36884,63967.0,63966.0,0.17065116]
[1724479898902,0.00804,63967.0,63966.0,0.17874295]
[1724479899306,0.09358948,63972.0,63966.0,0.17874295]
[1724479899307,0.09358948,63975.0,63966.0,1.33043195]
[1724479899618,0.078102,63974.0,63972.0,0.078104]
[1724479899914,0.168102,63974.0,63972.0,0.078104]
[1724479900513,0.168102,63974.0,63973.0,0.00230581]
[1724479900716,0.09,63974.0,63973.0,0.00230581]
[1724479901218,0.1,63974.0,63973.0,0.00230581]
[1724479901405,0.1779735,63974.0,63973.0,0.00230581]
[1724479901910,0.2560745,63974.0,63973.0,0.00230581]
[1724479902420,0.2660745,63974.0,63973.0,0.00230581]
[1724479902817,0.2560745,63974.0,63973.0,0.00330581]
[1724479903018,0.2620745,63974.0,63973.0,0.00430581]
[1724479903817,0.6228745,63974.0,63973.0,0.00430581]
[1724479904117,0.544901,63974.0,63973.0,0.00430581]
[1724479904314,0.5783627,63974.0,63973.0,0.00430581]
[1724479906615,0.57021918,63974.0,63973.0,0.00430581]
[1724479906815,0.40211818,63974.0,63973.0,0.00430581]